bitfinex/quotes_ETHUSD_20250924
["timestamp","ask_amount","ask_price","bid_price","bid_amount"]
[1758674312936,7.7379162,4185.4,4185.3,16.89331498]
[1758674315847,3.7339162,4185.4,4185.3,16.89331498]
[1758674316141,7.8571162,4185.4,4185.3,16.89331498]
[1758674317449,7.8561162,4185.4,4185.3,16.92131498]
[1758674317617,7.8561162,4185.4,4185.3,16.91731498]
[1758674317949,7.8561162,4185.4,4185.3,19.36015258]
[1758674319050,7.8561162,4185.4,4185.3,19.33615258]
[1758674319615,7.8561162,4185.4,4185.3,19.36015258]
[1758674319927,7.8561162,4185.4,4185.3,19.33615258]
[1758674322222,3.8531162,4185.4,4185.3,19.33615258]
[1758674322426,7.8561162,4185.4,4185.3,19.33615258]
[1758674323430,7.85295036,4185.4,4185.3,19.33615258]
[1758674323650,0.001,4185.5,4185.4,2.38925789]
[1758674323852,0.001,4185.5,4185.4,9.91514969]
[1758674324022,0.001,4185.5,4185.4,9.91925712]
[1758674325429,0.001,4185.5,4185.4,10.03845712]
[1758674325962,0.001,4185.5,4185.4,25.25698816]
[1758674327062,0.001,4185.5,4185.4,25.25298816]
[1758674327760,0.001,4185.5,4185.4,25.25698816]
[1758674328555,1e-08,4186.0,4185.9,2.3889725]
[1758674328857,1e-08,4186.0,4185.9,12.6466863]
[1758674329034,1e-08,4186.0,4185.9,12.6746863]
[1758674330369,1e-08,4186.0,4185.9,12.6706863]
[1758674331068,1e-08,4186.0,4185.9,12.6466863]
[1758674331258,1e-08,4186.0,4185.9,12.74248012]
[1758674332250,1e-08,4186.0,4185.9,7.08476813]
[1758674334089,1e-08,4186.0,4185.9,3.10576813]
[1758674334288,1e-08,4186.0,4185.9,7.10776813]
[1758674334788,1e-08,4186.0,4185.9,7.11176813]
[1758674335490,1e-08,4186.0,4185.9,21.61176813]
[1758674335696,1e-08,4186.0,4185.9,21.58376813]
[1758674336157,1e-08,4186.0,4185.9,21.61176813]
[1758674336559,1e-08,4186.8,4186.7,2.38851601]
[1758674336783,1e-08,4186.8,4186.7,8.54782357]
[1758674336981,1e-08,4186.8,4186.7,8.52393841]
[1758674337185,1e-08,4186.8,4186.7,23.02393841]
[1758674337783,1e-08,4186.8,4186.7,17.36622642]
[1758674337987,0.69160001,4186.8,4186.7,17.36622642]
[1758674341881,0.69160001,4186.8,4186.7,2.38851601]
[1758674342481,0.69160001,4186.8,4186.7,16.88851601]
[1758674343807,1e-08,4186.8,4186.7,16.88851601]
[1758674343992,0.69160001,4186.8,4186.7,16.88851601]
[1758674344382,1.04886069,4186.8,4186.6,2.38855301]
[1758674344579,0.1192,4186.6,4185.9,2.3889725]
[1758674344784,3.0,4186.4,4186.3,2.38874423]
[1758674345000,3.6916,4186.4,4186.3,2.38874423]
[1758674345340,3.6916,4186.4,4186.1,2.38881705]
[1758674345341,0.1192,4186.3,4186.2,2.38880129]
[1758674345489,0.47655811,4186.3,4186.2,2.38880129]
[1758674345695,1.16815811,4186.3,4186.2,2.38880129]
[1758674345896,1.16815811,4186.3,4186.2,16.88880129]
[1758674347228,0.70765811,4186.3,4186.2,16.88880129]
[1758674347411,1.16815811,4186.3,4186.2,16.88880129]
[1758674348226,0.93705811,4186.3,4186.2,16.88880129]
[1758674348401,4.25420929,4186.3,4186.2,18.81657217]
[1758674348741,0.1192,4186.3,4186.2,24.47428416]
[1758674349114,0.1192,4186.3,4186.2,18.81657217]
[1758674349642,0.1192,4186.3,4186.2,4.31657217]
[1758674349837,0.1192,4186.3,4186.2,4.34046018]
[1758674350339,0.1192,4186.3,4186.2,18.84046018]
[1758674350499,0.1192,4186.3,4186.2,18.81657217]
[1758674352209,7.001,4186.5,4186.4,2.38868717]
[1758674352399,7.001,4186.5,4186.4,2.90375389]
[1758674352944,3.0,4186.5,4186.4,2.90375389]
[1758674355408,3.13430256,4186.5,4186.4,2.90375389]
[1758674355816,3.13430256,4186.5,4186.4,2.38868717]
[1758674355817,3.60650256,4186.5,4186.4,2.38868717]
[1758674356109,4.07844482,4186.5,4186.4,16.88868717]
[1758674359131,3.35814482,4186.5,4186.4,16.88868717]
[1758674359463,3.35814482,4186.5,4186.4,2.38868717]
[1758674359760,7.13530256,4186.5,4186.4,2.38868717]
[1758674359929,7.13530256,4186.5,4186.4,17.37162476]
[1758674360330,3.13430256,4186.5,4186.4,17.37162476]
[1758674360633,4.001,4186.7,4186.5,2.38863012]
[1758674361158,4.001,4186.7,4186.6,2.38857306]
[1758674361347,4.001,4186.7,4186.6,2.41245879]
[1758674361553,4.001,4186.7,4186.6,4.39086144]
[1758674362663,4.001,4186.7,4186.6,4.36697571]
[1758674363158,4.00100001,4186.8,4186.7,2.38851601]
[1758674363358,4.72130001,4186.8,4186.7,2.38851601]
[1758674364443,4.72130001,4186.8,4186.7,16.88851601]
[1758674366475,4.47320001,4186.8,4186.7,16.88851601]
[1758674366676,4.00100001,4186.8,4186.7,18.86451868]
[1758674367178,4.72130001,4186.8,4186.7,18.86451868]
[1758674367376,4.22487415,4186.8,4186.7,18.86451868]
[1758674367757,4.00100001,4186.8,4186.7,18.86451868]
[1758674367958,4.72130001,4186.8,4186.7,16.88851601]
[1758674368360,4.94517603,4186.8,4186.7,16.88851601]
[1758674369861,7.94517603,4186.8,4186.7,16.88851601]
[1758674370240,8.46107006,4186.8,4186.7,16.88851601]
[1758674371387,7.22487603,4186.8,4186.7,16.88851601]
[1758674371591,3.22387603,4186.8,4186.7,16.88851601]
[1758674371789,7.22387603,4186.8,4186.7,18.81622492]
[1758674371980,7.22387603,4186.8,4186.7,16.88851601]
[1758674372690,7.35821745,4186.8,4186.7,16.88851601]
[1758674373882,4.35821745,4186.8,4186.7,16.88851601]
[1758674374066,4.13434143,4186.8,4186.7,16.88851601]
[1758674375085,4.00000001,4186.8,4186.7,16.88851601]
[1758674375287,0.001,4187.1,4187.0,2.38834487]
[1758674375488,4.22486163,4187.1,4187.0,2.38834487]
[1758674375691,4.001,4187.1,4187.0,2.38834487]
[1758674375895,4.001,4187.1,4187.0,16.88834487]
[1758674377117,0.001,4187.1,4187.0,16.88834487]
[1758674377276,0.001,4187.1,4187.0,19.23074119]
[1758674377472,4.001,4187.3,4187.1,2.38828783]
[1758674377779,4.001,4187.3,4187.2,2.41211309]
[1758674377995,0.001,4187.3,4187.2,2.41211309]
[1758674380610,0.001,4187.3,4187.2,16.91211309]
[1758674380808,0.001,4187.3,4187.2,16.88823079]
[1758674382410,0.001,4187.3,4187.2,19.21868265]
[1758674382981,4.001,4187.6,4187.5,2.3880597]
[1758674383275,4.001,4187.6,4187.5,2.41194029]
[1758674383475,4.001,4187.6,4187.5,2.3880597]
[1758674383675,4.001,4187.6,4187.5,16.8880597]
[1758674383908,4.001,4187.6,4187.5,19.22760305]
[1758674384408,4.6726,4187.6,4187.5,19.22760305]
[1758674384802,0.6726,4187.6,4187.5,19.22760305]
[1758674385622,0.001,4187.6,4187.5,19.22760305]
[1758674386633,0.6726,4187.6,4187.5,19.22760305]
[1758674387094,0.6726,4187.6,4187.5,16.8880597]
[1758674387302,0.001,4187.6,4187.5,16.8880597]
[1758674390098,0.6726,4187.6,4187.5,16.8880597]
[1758674395764,0.001,4187.6,4187.5,16.8880597]
[1758674396071,0.6726,4187.6,4187.5,16.8880597]
[1758674398131,0.001,4187.6,4187.5,16.8880597]
[1758674398337,0.001,4187.6,4187.5,19.22750305]
[1758674402060,0.001,4187.6,4187.5,16.8880597]
[1758674402263,0.6726,4187.6,4187.5,16.8880597]
[1758674402782,0.001,4187.6,4187.5,16.8880597]
[1758674402986,1e-08,4187.8,4187.7,2.38794565]
[1758674403194,0.1342866,4187.8,4187.7,2.4118251]
[1758674403399,1e-08,4187.9,4187.8,2.38788862]
[1758674403887,1e-08,4187.9,4187.8,2.4117675]
[1758674405576,1.07683576,4188.1,4188.0,2.38777459]
[1758674405775,0.1202,4188.2,4188.1,2.38771758]
[1758674406077,0.1202,4188.2,4188.1,2.41159475]
[1758674406589,0.7918,4188.2,4188.1,16.88771758]
[1758674408550,0.1202,4188.2,4188.1,16.88771758]
[1758674410687,0.1202,4188.2,4188.1,19.2150668]
[1758674413784,1e-08,4188.2,4188.1,19.2390668]
[1758674414101,1e-08,4188.2,4188.1,19.2150668]
[1758674416097,0.67330001,4188.2,4188.1,19.2150668]
[1758674416721,0.67330001,4188.2,4188.1,16.88771758]
[1758674416909,0.80760354,4188.2,4188.1,2.38771758]
[1758674417826,1.0314623,4188.2,4188.1,2.38771758]
[1758674421144,1.0314623,4188.2,4188.1,16.88771758]
[1758674421554,1.0314623,4188.2,4187.3,0.004]
[1758674421555,0.1192,4188.1,4187.8,2.3878442]
[1758674421854,0.1192,4188.1,4187.7,2.38792703]
[1758674421855,0.1192,4187.8,4187.7,2.38792703]
[1758674422146,0.1192,4187.8,4187.3,16.89216939]
[1758674422147,3.0,4187.7,4187.3,16.89216939]
[1758674422314,3.997,4187.8,4187.6,0.004]
[1758674422515,2.13876799,4187.7,4187.6,2.39200267]
[1758674423052,2.81206799,4187.7,4187.6,2.39200267]
[1758674423249,2.81206799,4187.7,4187.6,0.004]
[1758674423927,11.46160387,4187.7,4187.6,0.004]
[1758674424627,11.83621008,4187.7,4187.6,0.004]
[1758674431135,14.22415573,4187.7,4187.6,0.004]
[1758674431371,13.84954952,4187.7,4187.6,0.004]
[1758674431780,14.49425036,4187.7,4187.6,0.004]
[1758674432298,13.84954952,4187.7,4187.6,0.004]
[1758674432576,11.46160387,4187.7,4187.6,0.004]
[1758674433239,11.4612089,4187.7,4187.6,0.004]
[1758674433953,13.84915455,4187.7,4187.6,0.004]
[1758674434364,14.22381116,4187.7,4187.6,0.004]
[1758674434541,11.83586551,4187.7,4187.6,0.004]
[1758674435373,12.25032963,4187.7,4187.6,0.004]
[1758674438791,11.57702963,4187.7,4187.6,0.004]
[1758674439102,12.25032963,4187.7,4187.6,0.004]
[1758674442217,5.94692963,4187.7,4187.6,2.39200267]
[1758674442417,9.79649034,4187.7,4187.6,2.39200267]
[1758674442583,9.42183373,4187.7,4187.6,2.39200267]
[1758674442783,7.35483373,4187.7,4187.6,2.39200267]
[1758674442981,9.42183373,4187.7,4187.6,2.39200267]
[1758674443398,3.35783373,4187.7,4187.6,2.39200267]
[1758674443608,9.41815799,4187.7,4187.6,2.39200267]
[1758674444119,7.35115799,4187.7,4187.6,2.39200267]
[1758674447208,7.8660378,4187.7,4187.6,2.39200267]
[1758674448096,7.35115799,4187.7,4187.6,2.39200267]
[1758674448292,7.8662092,4187.7,4187.6,2.39200267]
[1758674453827,3.8692092,4187.7,4187.6,2.39200267]
[1758674454033,7.8662092,4187.7,4187.6,2.39200267]
[1758674456335,3.8692092,4187.7,4187.6,2.39200267]
[1758674456543,7.8652092,4187.7,4187.6,2.39200267]
[1758674456912,7.8652092,4187.7,4187.6,16.89200267]
[1758674459218,3.8692092,4187.7,4187.6,16.89200267]
[1758674459419,7.8652092,4187.7,4187.6,16.89200267]
[1758674459827,7.8652092,4187.7,4187.6,2.39200267]
[1758674460453,7.86741218,4187.7,4187.6,2.39200267]
[1758674461549,7.35236097,4187.7,4187.6,2.39200267]
[1758674462364,3.47556097,4187.7,4187.6,2.89920245]
[1758674462577,7.47156097,4187.7,4187.6,2.89920245]
[1758674463078,7.47156097,4187.7,4187.6,2.87520245]
[1758674463229,7.24949432,4187.7,4187.6,2.87520245]
[1758674464460,7.24949432,4187.7,4187.6,17.37520245]
[1758674464962,0.12020001,4188.2,4188.1,2.38771758]
[1758674465260,7.11620001,4188.2,4188.1,2.86526836]
[1758674466066,3.12020001,4188.2,4188.1,2.86526836]
[1758674466242,3.12020001,4188.2,4188.1,2.88926836]
[1758674466439,3.12020001,4188.2,4188.1,2.89326836]
[1758674467473,3.12020001,4188.2,4188.1,17.36526836]
[1758674467644,3.00100001,4188.2,4188.1,17.39326836]
[1758674468233,0.00100001,4188.2,4188.1,17.39326836]
[1758674470071,0.00100001,4188.2,4188.1,17.38926836]
[1758674470954,0.00100001,4188.2,4188.1,21.38426836]
[1758674471459,0.00100001,4188.2,4188.1,21.36026836]
[1758674471684,0.00100001,4188.2,4188.1,21.38826836]
[1758674471847,0.00100001,4188.2,4188.1,21.38426836]
[1758674472788,0.00100001,4188.2,4188.1,21.38826836]
[1758674475553,0.00100001,4188.2,4188.1,21.38426836]
[1758674477404,0.00100001,4188.2,4188.1,21.38826836]
[1758674477603,0.00100001,4188.2,4188.1,21.50746836]
[1758674477804,0.00100001,4188.2,4188.1,21.76496836]
[1758674477968,0.00100001,4188.2,4188.1,21.76096836]
[1758674478387,0.00100001,4188.2,4188.1,21.76496836]
[1758674478781,0.00100001,4188.2,4188.1,21.76096836]
[1758674479911,0.00100001,4188.2,4188.1,21.76496836]
[1758674484340,0.00100001,4188.2,4188.1,21.76096836]
[1758674487322,0.00100001,4188.2,4188.1,21.76496836]
[1758674489245,0.00100001,4188.2,4188.1,21.76096836]
[1758674491509,0.00100001,4188.2,4188.1,21.73696836]
[1758674498143,0.70330001,4188.2,4188.1,17.74196836]
[1758674498462,0.70330001,4188.2,4188.1,16.88771758]
[1758674503534,0.00100001,4188.2,4188.1,16.88771758]
[1758674503845,0.68170001,4188.2,4188.1,16.88771758]
[1758674504836,0.81607121,4188.2,4188.1,2.38771758]
[1758674505040,1.03866061,4188.2,4188.1,2.38771758]
[1758674506570,1.49411661,4188.2,4188.1,2.38771758]
[1758674508455,1.03866061,4188.2,4188.1,2.38771758]
[1758674509341,1.03866061,4188.2,4188.1,16.88771758]
[1758674512597,1.03866061,4188.2,4188.1,2.38771758]
[1758674512962,1.03866061,4188.2,4188.1,16.88771758]
[1758674513293,1.03845222,4188.2,4188.1,16.88771758]
[1758674513499,0.81586282,4188.2,4188.1,16.88771758]
[1758674516104,0.81586282,4188.2,4188.1,2.38771758]
[1758674516601,0.81586282,4188.2,4188.1,16.88771758]
[1758674516769,0.81586282,4188.2,4188.1,14.5]
[1758674516770,1.03804673,4188.2,4188.1,14.5]
[1758674516965,1.03804673,4188.2,4188.1,2.38771758]
[1758674516966,1.8925598,4188.2,4188.1,2.38771758]
[1758674517168,1.8925598,4188.2,4188.0,2.38777106]
[1758674517410,0.1192,4187.8,4187.6,2.39195905]
[1758674517591,0.81486281,4187.7,4187.6,2.39195905]
[1758674517902,3.81486281,4187.7,4187.6,2.39195905]
[1758674518068,3.81486281,4187.7,4187.6,16.89195905]
[1758674520987,3.81486281,4187.7,4187.6,2.39195905]
[1758674521580,3.81486281,4187.7,4187.6,16.89195905]
[1758674521782,4.83088834,4187.7,4187.6,16.89200267]
[1758674521990,4.83088834,4187.7,4187.6,14.504]
[1758674522187,4.83088834,4187.7,4187.6,0.004]
[1758674522697,5.34581976,4187.7,4187.6,0.004]
[1758674523411,5.72041315,4187.7,4187.6,0.004]
[1758674524567,5.72033388,4187.7,4187.6,0.004]
[1758674525886,5.72033388,4187.7,4187.6,2.39200267]
[1758674526106,1.97070246,4187.7,4187.6,2.39200267]
[1758674526302,7.47089618,4187.7,4187.6,2.39200267]
[1758674526594,10.47089618,4187.7,4187.6,2.39200267]
[1758674526796,3.73219618,4187.7,4187.6,2.39200267]
[1758674526985,7.72319618,4187.7,4187.6,2.39200267]
[1758674527190,7.72319618,4187.7,4187.6,16.89200267]
[1758674527693,7.34860279,4187.7,4187.6,16.89200267]
[1758674527890,3.13416281,4187.7,4187.6,16.89200267]
[1758674528089,7.24436281,4187.7,4187.6,16.91600267]
[1758674528594,3.25336281,4187.7,4187.6,16.89200267]
[1758674528795,0.1192,4187.7,4187.6,18.84441451]
[1758674528998,1.4312,4188.0,4187.9,2.38783161]
[1758674529221,0.1192,4188.0,4187.9,2.41183161]
[1758674529408,0.1192,4188.0,4187.9,2.41583161]
[1758674529722,0.1192,4188.0,4187.9,2.38783161]
[1758674529923,0.1192,4188.0,4187.9,4.51105052]
[1758674531025,0.1192,4188.0,4187.9,4.53905052]
[1758674531224,0.00100001,4188.2,4188.1,2.38771758]
[1758674532405,0.00100001,4188.2,4188.1,16.88771758]
[1758674535932,0.69380001,4188.2,4188.1,16.88771758]
[1758674539444,0.00100001,4188.2,4188.1,4.3152725]
[1758674539826,0.00100001,4188.2,4188.1,18.8152725]
[1758674541353,0.69380001,4188.2,4188.1,16.88771758]
[1758674541549,3.22840001,4188.2,4188.1,16.88771758]
[1758674541742,3.69380001,4188.2,4188.1,16.88771758]
[1758674542522,3.00100001,4188.2,4188.1,16.88771758]
[1758674542722,3.69380001,4188.2,4188.1,16.88771758]
[1758674543321,3.8278754,4188.2,4188.1,16.88771758]
[1758674543521,3.8278754,4188.2,4187.6,3.995]
[1758674543522,4.83323122,4188.2,4187.8,2.3878612]
[1758674543848,3.0,4188.0,4187.9,2.38783161]
[1758674544064,3.35754367,4188.0,4187.9,2.38783161]
[1758674544237,4.05034367,4188.0,4187.9,2.38783161]
[1758674544424,0.1192,4187.9,4187.8,14.5]
[1758674544617,5.15954367,4187.9,4187.8,16.88788429]
[1758674544945,5.15954367,4187.9,4187.8,14.5]
[1758674545146,5.15954367,4187.9,4187.8,16.88788862]
[1758674545743,5.15954367,4187.9,4187.6,0.004]
[1758674545744,3.0,4187.8,4187.6,0.004]
[1758674546058,5.15954367,4187.9,4187.6,2.39199768]
[1758674546059,8.57239035,4187.7,4187.6,2.39199768]
[1758674546219,9.26519035,4187.7,4187.6,0.004]
[1758674546419,9.26519035,4187.7,4187.6,2.39200267]
[1758674548069,9.26519035,4187.7,4187.6,0.004]
[1758674549053,9.78006687,4187.7,4187.6,0.004]
[1758674550931,10.15468187,4187.7,4187.6,0.004]
[1758674552176,17.34468187,4187.7,4187.6,0.004]
[1758674555978,21.16799024,4187.7,4187.6,0.004]
[1758674556164,20.52462752,4187.7,4187.6,0.004]
[1758674556359,21.16787498,4187.7,4187.6,0.004]
[1758674557076,20.52462752,4187.7,4187.6,0.004]
[1758674557367,20.1499116,4187.7,4187.6,0.004]
[1758674560143,20.1509116,4187.7,4187.6,0.004]
[1758674561037,21.0095921,4187.7,4187.6,0.004]
[1758674562753,12.9609116,4187.7,4187.6,0.004]
[1758674563085,14.5494441,4187.7,4187.6,0.004]
[1758674563240,14.81600753,4187.7,4187.6,0.004]
[1758674563439,15.1907152,4187.7,4187.6,0.004]
[1758674565582,14.92415177,4187.7,4187.6,0.004]
[1758674568272,22.11415177,4187.7,4187.6,0.004]
[1758674568995,14.92415177,4187.7,4187.6,0.004]
[1758674569898,21.92415177,4187.7,4187.6,0.004]
[1758674570707,24.44315177,4187.7,4187.6,0.004]
[1758674570891,21.92415177,4187.7,4187.6,0.004]
[1758674571276,20.63613102,4187.7,4187.6,0.004]
[1758674573288,3.18011673,4187.4,4187.3,0.004]
[1758674573599,18.62017084,4187.4,4187.3,0.004]
[1758674573802,19.32117084,4187.4,4187.3,0.004]
[1758674574509,19.835913,4187.4,4187.3,0.004]
[1758674574974,19.32117084,4187.4,4187.3,0.004]
[1758674577576,21.12393143,4187.4,4187.3,0.004]
[1758674577775,20.60885698,4187.4,4187.3,0.004]
[1758674578110,21.12393143,4187.4,4187.3,0.004]
[1758674578987,20.65663143,4187.4,4187.3,0.004]
[1758674579188,19.13524529,4187.4,4187.3,0.004]
[1758674579400,19.83624529,4187.4,4187.3,0.004]
[1758674581098,20.13675704,4187.4,4187.3,0.004]
[1758674581298,19.83624529,4187.4,4187.3,0.004]
[1758674582150,26.83624529,4187.4,4187.3,0.004]
[1758674583835,34.02624529,4187.4,4187.3,0.004]
[1758674586947,6.29937376,4187.3,4187.2,0.004]
[1758674587113,10.9723056,4187.3,4187.2,0.004]
[1758674587648,12.67095503,4187.3,4187.2,0.004]
[1758674587815,13.80195503,4187.3,4187.2,0.028]
[1758674588016,10.22634039,4187.3,4187.2,0.032]
[1758674588220,17.98185016,4187.3,4187.2,0.032]
[1758674591082,18.35650146,4187.3,4187.2,0.028]
[1758674591881,25.35650146,4187.3,4187.2,0.028]
[1758674593248,24.4961685,4187.3,4187.2,0.004]
[1758674593691,36.62828658,4187.3,4187.2,0.004]
[1758674593882,6.18023079,4187.2,4187.1,0.004]
[1758674594184,14.24274799,4187.2,4187.1,0.004]
[1758674594333,14.94424799,4187.2,4187.1,0.004]
[1758674594550,23.9759081,4187.2,4187.1,0.004]
[1758674595990,14.2973548,4187.2,4187.1,0.004]
[1758674596151,18.2873548,4187.2,4187.1,0.028]
[1758674596348,21.64572314,4187.2,4187.1,0.004]
[1758674596671,21.64572314,4187.2,4187.1,0.028]
[1758674596876,20.3553548,4187.2,4187.1,0.028]
[1758674597088,20.3553548,4187.2,4187.1,0.004]
[1758674599115,21.215548,4187.2,4187.1,0.004]
[1758674599275,21.215548,4187.2,4187.1,0.028]
[1758674599886,21.215548,4187.2,4187.1,0.004]
[1758674600922,21.215548,4187.2,4187.1,0.028]
[1758674601077,18.28718318,4187.2,4187.1,0.028]
[1758674601277,17.49518318,4187.2,4187.1,0.028]
[1758674601490,24.49518318,4187.2,4187.1,0.032]
[1758674601690,19.08223101,4187.2,4187.1,0.032]
[1758674602011,24.49518318,4187.2,4187.1,0.032]
[1758674602212,24.49518318,4187.2,4187.1,2.42028783]
[1758674603284,24.49518318,4187.2,4187.1,2.41628783]
[1758674603490,24.49518318,4187.2,4187.1,0.032]
[1758674604390,24.49518318,4187.2,4187.1,2.42028783]
[1758674605734,24.49518318,4187.2,4187.1,0.032]
[1758674605895,24.49518318,4187.2,4187.1,0.028]
[1758674607431,24.49518318,4187.2,4187.1,2.41628783]
[1758674607623,24.49518318,4187.2,4187.1,0.028]
[1758674607799,24.49518318,4187.2,4187.1,0.004]
[1758674609018,24.49518318,4187.2,4187.1,2.39228783]
[1758674609333,24.49518318,4187.2,4187.1,0.004]
[1758674609530,17.49518318,4187.2,4187.1,2.39228783]
[1758674610809,17.49518318,4187.2,4187.1,0.004]
[1758674611531,17.49518318,4187.2,4187.1,2.39228783]
[1758674611739,17.49518318,4187.2,4187.1,0.004]
[1758674613017,17.49618318,4187.2,4187.1,0.004]
[1758674614432,19.57914628,4187.2,4187.1,0.004]
[1758674614747,20.68129411,4187.2,4187.1,0.004]
[1758674616215,23.0695249,4187.2,4187.1,0.004]
[1758674616422,23.21647707,4187.2,4187.1,0.004]
[1758674617225,22.84181109,4187.2,4187.1,0.004]
[1758674618264,23.70200429,4187.2,4187.1,0.004]
[1758674618464,23.70245029,4187.2,4187.1,0.004]
[1758674618622,21.3142195,4187.2,4187.1,0.004]
[1758674618827,22.84225709,4187.2,4187.1,0.004]
[1758674619898,20.4540263,4187.2,4187.1,0.004]
[1758674620264,20.82870857,4187.2,4187.1,0.004]
[1758674620663,23.21693936,4187.2,4187.1,0.004]
[1758674621286,24.07713256,4187.2,4187.1,0.004]
[1758674621517,20.82870857,4187.2,4187.1,0.004]
[1758674624090,20.82905902,4187.2,4187.1,0.004]
[1758674625189,21.68925222,4187.2,4187.1,0.004]
[1758674626632,20.58465902,4187.2,4187.1,0.004]
[1758674626794,20.82585902,4187.2,4187.1,0.004]
[1758674627507,12.08413832,4187.2,4187.1,0.004]
[1758674627833,17.11931365,4187.2,4187.1,2.41628783]
[1758674628191,17.11931365,4187.2,4187.1,2.42028783]
[1758674628789,17.11931365,4187.2,4187.1,2.41628783]
[1758674629418,17.11931365,4187.2,4187.1,0.028]
[1758674629734,17.11931365,4187.2,4187.1,0.004]
[1758674631034,17.49396087,4187.2,4187.1,0.004]
[1758674631194,20.0659612,4187.2,4187.1,0.004]
[1758674631394,20.7111036,4187.2,4187.1,0.004]
[1758674631712,20.0659612,4187.2,4187.1,0.004]
[1758674631914,20.8579612,4187.2,4187.1,0.004]
[1758674634116,23.24619199,4187.2,4187.1,0.004]
[1758674634323,24.10638519,4187.2,4187.1,0.004]
[1758674635230,21.7181544,4187.2,4187.1,0.004]
[1758674636717,20.8579612,4187.2,4187.1,0.004]
[1758674637243,17.49396087,4187.2,4187.1,0.004]
[1758674637413,11.06431365,4187.2,4187.1,0.004]
[1758674637739,17.76447999,4187.2,4187.1,2.41628783]
[1758674638460,17.11931365,4187.2,4187.1,0.004]
[1758674640450,17.49396677,4187.2,4187.1,0.004]
[1758674641629,17.49396677,4187.2,4187.1,2.39228783]
[1758674642368,17.49396677,4187.2,4187.1,0.004]
[1758674644229,18.13913311,4187.2,4187.1,0.004]
[1758674644429,18.1404064,4187.2,4187.1,0.004]
[1758674645240,17.4951208,4187.2,4187.1,0.004]
[1758674646257,17.49526465,4187.2,4187.1,0.004]
[1758674650266,17.49526465,4187.2,4187.1,2.39228783]
[1758674650468,17.49536434,4187.2,4187.1,0.004]
[1758674651467,18.80504994,4187.2,4187.1,0.004]
[1758674651764,18.15976434,4187.2,4187.1,0.004]
[1758674652757,28.15639676,4187.2,4187.1,0.004]
[1758674653069,28.37130436,4187.2,4187.1,0.004]
[1758674653372,30.75953515,4187.2,4187.1,0.004]
[1758674653784,28.37130436,4187.2,4187.1,0.004]
[1758674654159,17.49536434,4187.2,4187.1,0.004]
[1758674654466,18.14073073,4187.2,4187.1,0.004]
[1758674654665,17.76607761,4187.2,4187.1,0.004]
[1758674655158,18.14074107,4187.2,4187.1,0.004]
[1758674657884,17.76607761,4187.2,4187.1,0.004]
[1758674658743,17.76607761,4187.2,4187.1,2.39228783]
[1758674660276,17.12071122,4187.2,4187.1,2.39228783]
[1758674660846,17.49536264,4187.2,4187.1,2.39228783]
[1758674661457,11.44036264,4187.2,4187.1,2.39228783]
[1758674661663,8.44036264,4187.2,4187.1,4.34875527]
[1758674661863,14.91113416,4187.2,4187.1,4.34875527]
[1758674662190,14.53648274,4187.2,4187.1,4.34875527]
[1758674662909,4.46568274,4187.2,4187.1,4.34475527]
[1758674663204,7.46568274,4187.2,4187.1,4.34875527]
[1758674663410,7.46568274,4187.2,4187.1,2.42028783]
[1758674663565,7.46568274,4187.2,4187.1,16.92028783]
[1758674665403,7.24163103,4187.2,4187.1,16.92028783]
[1758674666509,7.24163103,4187.2,4187.1,2.42028783]
[1758674667111,7.24163103,4187.2,4187.1,16.92028783]
[1758674667312,7.24163103,4187.2,4187.1,18.92339254]
[1758674668206,7.24163103,4187.2,4187.1,18.91939254]
[1758674668825,7.24163103,4187.2,4187.1,18.89539254]
[1758674669194,7.1072,4187.2,4187.1,18.89539254]
[1758674670127,7.1072,4187.2,4187.1,4.39539254]
[1758674670424,7.1072,4187.2,4187.1,2.39228783]
[1758674670724,7.1072,4187.2,4187.1,16.89228783]
[1758674672121,7.1062,4187.2,4187.1,16.91628783]
[1758674672316,7.1062,4187.2,4187.1,16.92028783]
[1758674673429,7.1062,4187.2,4187.1,16.89228783]
[1758674673638,7.1062,4187.2,4187.1,18.89259254]
[1758674678213,3.1202,4187.2,4187.1,18.89259254]
[1758674678416,0.1202,4187.2,4187.1,18.92059254]
[1758674679350,0.001,4187.2,4187.1,22.90559254]
[1758674681554,0.001,4187.2,4187.1,18.89259254]
[1758674682525,0.001,4187.2,4187.1,18.91659254]
[1758674682726,0.001,4187.2,4187.1,18.92059254]
[1758674682927,0.001,4187.2,4187.1,18.91659254]
[1758674683150,0.001,4187.2,4187.1,24.57505028]
[1758674683350,0.001,4187.2,4187.1,25.29334218]
[1758674683760,0.001,4187.2,4187.1,25.41254218]
[1758674684937,0.001,4187.2,4187.1,25.40854218]
[1758674685140,0.001,4187.2,4187.1,25.41254218]
[1758674685662,0.001,4187.2,4187.1,25.38454218]
[1758674685966,0.001,4187.2,4187.1,29.36954218]
[1758674686161,0.001,4187.2,4187.1,28.65125028]
[1758674686759,0.001,4187.2,4187.1,28.67525028]
[1758674688764,0.001,4187.2,4187.1,22.99679254]
[1758674693330,0.001,4187.2,4187.1,23.02079254]
[1758674693530,0.001,4187.2,4187.1,23.02479254]
[1758674694807,0.001,4187.2,4187.1,23.12055402]
[1758674698743,0.001,4187.2,4187.1,23.11655402]
[1758674700243,0.001,4187.2,4187.1,23.09255402]
[1758674700444,0.001,4187.2,4187.1,23.09055402]
[1758674700797,4.74254272,4188.4,4188.0,2.38777459]
[1758674700951,1e-08,4188.2,4188.1,2.38771758]
[1758674701391,4.49849267,4189.4,4188.1,2.38771758]
[1758674701393,0.0957452,4190.2,4188.1,1.43]
[1758674701728,0.22366948,4190.1,4190.0,2.38663484]
[1758674701994,0.41914616,4190.9,4190.0,2.38663484]
[1758674701995,0.41914616,4190.9,4190.2,2.38652092]
[1758674702194,0.02,4190.9,4190.3,4.03586463]
[1758674702348,0.02,4190.9,4190.6,2.38629313]
[1758674702550,0.02,4190.9,4190.6,6.42215606]
[1758674702752,0.02,4190.9,4190.6,20.89829313]
[1758674702994,0.02,4190.9,4190.6,22.23021637]
[1758674703600,0.4505,4191.3,4191.2,2.38595151]
[1758674703767,0.4505,4191.3,4191.2,2.40981102]
[1758674704277,0.39423812,4191.9,4191.4,2.38581974]